bitfinex/quotes_ETHUSD_20260113
["timestamp","ask_amount","ask_price","bid_price","bid_amount"]
[1768340169132,1.99979657,3208.4,3207.6,0.244]
[1768340169368,1.99899657,3208.4,3207.6,0.244]
[1768340169831,1.99819657,3208.4,3207.6,0.244]
[1768340170366,4.65971134,3208.5,3207.6,2.1810312]
[1768340170564,3.11521835,3208.4,3207.8,1.9370312]
[1768340170762,3.11361835,3208.4,3207.8,1.9370312]
[1768340170976,3.11201835,3208.4,3207.8,1.9370312]
[1768340171678,3.10961835,3208.4,3207.9,1.9370312]
[1768340171883,3.10801835,3208.4,3207.9,1.9370312]
[1768340172196,3.10561835,3208.4,3207.9,1.9370312]
[1768340172388,3.10401835,3208.4,3207.9,1.9370312]
[1768340172678,6.2318733,3208.5,3207.9,1.9370312]
[1768340172843,7.22371601,3208.5,3207.9,1.9370312]
[1768340173043,7.22211601,3208.5,3207.9,1.9370312]
[1768340173375,2.00059657,3208.4,3207.6,0.244]
[1768340173592,2.00059657,3208.4,3207.5,0.001]
[1768340173593,1.99899657,3208.4,3207.5,0.001]
[1768340173910,1.99659657,3208.4,3207.5,0.001]
[1768340174065,2.00059657,3208.2,3207.5,0.001]
[1768340174387,2.24399657,3208.1,3207.5,0.001]
[1768340174589,5.35958915,3208.1,3207.5,0.001]
[1768340174785,5.35798915,3208.1,3207.5,0.001]
[1768340174987,5.35638915,3208.1,3207.5,0.001]
[1768340175170,5.35478915,3208.1,3207.5,0.001]
[1768340175370,5.35318915,3208.1,3207.5,0.001]
[1768340175696,5.35078915,3208.1,3207.5,0.001]
[1768340175998,5.34838915,3208.1,3207.5,0.001]
[1768340176199,5.34838915,3208.1,3207.2,0.001]
[1768340176200,4.65837595,3207.8,3207.2,0.001]
[1768340176406,1.99899657,3207.7,3206.9,1.9380312]
[1768340176606,6.23519142,3207.6,3206.9,1.9380312]
[1768340176907,3.11759571,3207.6,3206.9,1.9380312]
[1768340177475,3.11679571,3207.6,3206.9,1.9380312]
[1768340177767,2.04021295,3207.5,3206.9,0.19480312]
[1768340177991,2.03861295,3207.5,3206.9,0.001]
[1768340178200,3.11753284,3207.7,3206.9,0.001]
[1768340178379,3.36093284,3207.7,3206.9,1.9620714]
[1768340178592,3.11701265,3208.2,3206.9,1.9620714]
[1768340178793,0.2442,3207.9,3207.2,1.9610714]
[1768340178988,0.2426,3207.9,3207.3,0.19610714]
[1768340179810,0.2418,3207.9,3207.3,0.19610714]
[1768340180115,3.11541265,3208.2,3207.3,2.15717854]
[1768340180279,5.1548256,3208.2,3207.3,2.15717854]
[1768340180478,0.2442,3208.1,3207.3,2.15717854]
[1768340180830,3.11560698,3208.0,3207.4,0.21571785]
[1768340181124,3.11320698,3208.0,3207.4,0.21571785]
[1768340181408,3.11080698,3208.0,3207.4,0.21571785]
[1768340181578,3.10920698,3208.0,3207.4,0.21571785]
[1768340181779,5.14781993,3208.0,3207.4,0.21571785]
[1768340182106,2.03781295,3208.0,3207.4,0.21571785]
[1768340182308,2.03621295,3208.0,3207.4,0.21571785]
[1768340182499,2.03461295,3208.0,3207.4,0.21571785]
[1768340182689,2.03301295,3208.0,3207.4,0.21571785]
[1768340182890,2.03141295,3208.0,3207.4,0.21571785]
[1768340183204,5.14626947,3208.0,3207.4,0.21571785]
[1768340183409,5.14466947,3208.0,3207.4,0.21571785]
[1768340183587,3.11645652,3208.0,3207.4,0.21571785]
[1768340183777,2.04021295,3207.9,3206.9,0.245]
[1768340184082,2.04021295,3207.9,3207.0,1.9610714]
[1768340184083,5.15513564,3207.9,3207.0,1.9610714]
[1768340184295,5.15353564,3207.9,3207.0,1.9610714]
[1768340184590,5.15113564,3207.9,3207.0,1.9610714]
[1768340184795,5.14953564,3207.9,3207.1,1.9610714]
[1768340184991,5.14793564,3207.9,3207.2,0.19610714]
[1768340185192,8.26365833,3207.9,3207.1,1.9610714]
[1768340185398,8.26365833,3207.9,3206.9,0.245]
[1768340185399,2.04021295,3207.8,3206.9,0.245]
[1768340185581,2.04021295,3207.8,3206.9,0.001]
[1768340185582,2.03781295,3207.8,3206.9,0.001]
[1768340185780,2.04021295,3207.6,3206.9,0.001]
[1768340185991,2.03941295,3207.4,3206.9,0.001]
[1768340186198,4.65837595,3208.0,3206.9,0.001]
[1768340186199,2.04021295,3208.4,3207.3,1.9610714]
[1768340186402,4.65837595,3208.5,3207.3,1.9610714]
[1768340186403,2.95427184,3208.3,3207.3,1.9610714]
[1768340186601,2.95267184,3208.3,3207.3,1.9610714]
[1768340186814,2.03941295,3208.2,3207.3,1.9610714]
[1768340187038,0.245,3208.1,3207.4,1.9610714]
[1768340187311,0.2426,3208.1,3207.5,1.9610714]
[1768340187513,0.241,3208.1,3207.5,1.9610714]
[1768340187686,0.2394,3208.1,3207.5,1.9610714]
[1768340187886,0.2378,3208.1,3207.5,1.9610714]
[1768340188119,0.245,3208.1,3207.3,1.9610714]
[1768340188416,0.2426,3208.1,3207.4,0.19610714]
[1768340188719,5.15643261,3208.2,3207.4,0.19610714]
[1768340188890,2.28441295,3208.1,3207.4,0.19610714]
[1768340189097,2.28281295,3208.1,3207.4,0.19610714]
[1768340189309,2.28121295,3208.1,3207.4,0.19610714]
[1768340189620,2.27881295,3208.1,3207.4,0.19610714]
[1768340189820,2.27721295,3208.1,3207.4,0.19610714]
[1768340190024,5.39277198,3208.1,3207.4,0.19610714]
[1768340190196,2.04021295,3208.0,3207.4,0.19610714]
[1768340190730,2.04021295,3208.0,3207.2,1.9620714]
[1768340190890,3.35255903,3208.1,3207.2,1.9620714]
[1768340191324,0.2354,3208.1,3207.2,1.9620714]
[1768340191827,3.35254972,3208.1,3207.2,1.9620714]
[1768340192321,0.245,3208.1,3207.2,1.9620714]
[1768340192526,0.245,3208.1,3207.4,1.9610714]
[1768340192821,2.28521295,3208.1,3207.3,0.19620714]
[1768340193225,2.04021295,3208.1,3207.3,2.15727854]
[1768340193392,0.245,3208.2,3207.3,2.15727854]
[1768340193597,5.15715336,3208.3,3207.5,1.9610714]
[1768340193797,2.04021295,3208.2,3207.4,0.21582785]
[1768340194122,2.04021295,3208.2,3207.3,1.9610714]
[1768340194598,2.04021295,3208.1,3207.3,1.9610714]
[1768340197823,5.15733392,3208.1,3207.3,1.9610714]
[1768340198525,1.89633707,3208.0,3207.3,1.9610714]
[1768340198825,1.89633707,3208.0,3207.2,0.001]
[1768340199225,1.89633707,3207.9,3207.2,0.001]
[1768340199429,1.89633707,3207.8,3207.2,0.001]
[1768340199625,1.89633707,3207.6,3207.2,0.001]
[1768340199999,1.89633707,3207.8,3207.2,0.001]
[1768340201410,1.89633707,3207.9,3207.6,0.001]
[1768340201735,3.06936778,3207.9,3207.6,0.001]
[1768340202344,1.89633707,3207.8,3207.6,0.001]
[1768340202712,2.14133707,3207.8,3207.6,0.001]
[1768340203314,1.89633707,3207.6,3207.2,0.001]
[1768340203515,1.89633707,3207.6,3206.9,0.001]
[1768340203714,0.52588356,3207.6,3206.9,2.06235918]
[1768340204019,1.89633707,3207.5,3206.9,0.001]
[1768340204808,1.89633707,3207.7,3206.9,0.001]
[1768340205247,1.89633707,3207.6,3206.9,0.001]
[1768340205545,3.1176929,3207.5,3206.9,0.001]
[1768340205759,5.01402997,3207.5,3206.9,0.001]
[1768340206054,2.40160143,3207.4,3206.9,0.001]
[1768340207514,3.11788731,3207.3,3206.9,0.001]
[1768340209853,1.89633707,3207.2,3206.9,0.001]
[1768340211851,1.89633707,3207.0,3206.9,0.001]
[1768340212657,3.11756784,3207.7,3206.9,0.001]
[1768340212658,1.89633707,3207.7,3206.9,0.001]
[1768340212956,1.89633707,3207.6,3206.9,0.001]
[1768340213321,5.2587384,3207.8,3206.9,2.06235918]
[1768340213648,0.245,3208.0,3207.2,0.001]
[1768340214238,1.89633707,3208.1,3207.2,2.06235918]
[1768340214239,5.01348672,3208.1,3207.2,2.06235918]
[1768340214453,3.11714965,3208.1,3207.3,2.2675951]
[1768340216918,5.01337033,3208.2,3207.3,2.2675951]
[1768340217120,7.77485464,3208.8,3207.3,2.2675951]
[1768340217121,1.89633707,3208.6,3207.3,2.2675951]
[1768340217338,2.14133707,3208.5,3207.3,2.2675951]
[1768340217541,2.14133707,3208.5,3207.5,2.06135918]
[1768340217852,2.14133707,3208.5,3207.4,0.22685951]
[1768340217853,2.14133707,3208.6,3207.4,2.28821869]
[1768340218434,1.89633707,3208.4,3207.4,2.28821869]
[1768340219555,5.0131934,3208.4,3207.4,2.28821869]
[1768340220152,8.13004973,3208.4,3207.4,2.28821869]
[1768340220456,8.13004973,3208.4,3207.5,2.31458105]
[1768340220953,3.36177601,3208.5,3207.5,2.31458105]
[1768340221252,3.11677601,3208.5,3207.5,2.31458105]
[1768340221555,1.89633707,3208.6,3207.5,2.31458105]
[1768340221765,5.25796511,3208.6,3207.5,2.31458105]
[1768340221945,5.25796511,3208.6,3207.7,2.06135918]
[1768340222658,1.89633707,3208.5,3207.6,0.23145811]
[1768340222958,1.89633707,3208.5,3207.3,0.244]
[1768340223676,1.89633707,3208.3,3207.3,2.30535918]
[1768340225147,2.02683846,3208.2,3207.3,2.30535918]
[1768340225771,2.02483846,3208.0,3207.3,0.244]
[1768340226143,2.02483846,3208.0,3207.2,0.001]
[1768340226378,2.02483846,3208.0,3207.2,0.18832644]
[1768340226543,2.02483846,3208.0,3207.2,0.001]
[1768340227895,2.02483846,3207.5,3207.2,0.001]
[1768340228558,2.02483846,3208.8,3207.7,1.8722644]
[1768340228760,2.02483846,3208.3,3207.3,0.244]
[1768340228952,3.11681835,3208.4,3207.3,0.244]
[1768340229359,6.23364571,3208.4,3207.3,0.244]
[1768340229640,7.56804788,3208.4,3207.3,0.244]
[1768340230447,9.59288634,3208.4,3207.3,2.1162644]
[1768340230648,6.68321441,3208.3,3207.3,2.1162644]
[1768340230955,2.02483846,3208.2,3207.3,0.244]
[1768340231346,4.66016312,3208.0,3207.3,0.244]
[1768340231545,4.66016312,3208.0,3207.3,0.45572644]
[1768340231938,3.11730415,3207.9,3207.3,0.45572644]
[1768340232878,8.25944676,3207.9,3207.2,0.001]
[1768340233074,4.66016312,3207.7,3207.2,0.001]
[1768340233781,6.68500158,3207.7,3207.2,0.001]
[1768340234278,3.11759571,3207.6,3207.2,0.001]
[1768340234580,4.66016312,3207.4,3207.2,0.001]
[1768340234808,6.79829657,3207.6,3207.2,0.001]
[1768340235090,8.34086398,3207.6,3207.2,0.001]
[1768340235247,11.45845969,3207.6,3207.2,0.001]
[1768340235650,3.11876027,3208.5,3207.2,4.66116312]
[1768340235849,7.77892339,3208.5,3207.3,0.244]
[1768340236090,7.77892339,3208.5,3207.4,0.00230475]
[1768340236263,4.66216312,3208.5,3207.4,0.00230475]
[1768340236468,7.7788861,3208.5,3207.4,0.00230475]
[1768340236666,10.27511908,3208.5,3207.4,0.00230475]
[1768340236991,1.95275604,3208.4,3207.4,0.00230475]
[1768340237179,0.002,3207.7,3207.4,0.00230475]
[1768340237354,1.95275604,3208.4,3207.3,0.244]
[1768340237557,0.002,3208.0,3207.3,0.244]
[1768340239193,0.002,3208.0,3207.4,0.01143077]
[1768340240591,0.002,3208.0,3207.3,0.244]
[1768340243113,1.95475604,3208.0,3207.3,0.244]
[1768340244381,1.99336968,3208.0,3207.3,0.244]
[1768340244582,1.95475604,3208.0,3207.3,0.244]
[1768340245000,5.07197813,3208.0,3207.3,0.244]
[1768340245502,1.95275604,3207.9,3207.2,0.001]
[1768340247104,0.002,3208.0,3207.2,0.02947696]
[1768340248294,0.002,3208.0,3207.4,0.03049397]
[1768340248481,0.002,3208.0,3207.5,0.03117692]
[1768340249107,0.002,3208.0,3207.4,0.03049397]
[1768340249273,0.002,3208.0,3207.5,0.001]
[1768340249598,0.002,3207.7,3207.5,0.001]
[1768340250772,1.95475604,3207.7,3207.5,0.001]
[1768340264211,1.8753746,3207.6,3207.2,0.001]
[1768340265918,0.002,3207.7,3207.2,0.001]
[1768340266117,0.002,3207.7,3207.2,0.04540853]
[1768340266285,0.002,3207.7,3207.2,0.001]
[1768340266485,1.8773746,3207.7,3207.2,0.001]
[1768340269223,0.002,3207.7,3207.2,0.001]
[1768340269398,0.002,3207.7,3207.2,0.47086358]
[1768340269603,1.8773746,3207.7,3207.2,0.47086358]
[1768340269793,0.002,3207.7,3207.2,0.50833624]
[1768340269995,0.002,3207.7,3207.2,0.47086358]
[1768340273729,0.002,3207.7,3207.5,0.001]
[1768340274023,1.8773746,3207.7,3207.5,0.001]
[1768340275642,1.91398824,3207.6,3206.9,0.001]
[1768340275937,1.8753746,3207.6,3206.9,0.001]
[1768340276237,0.002,3207.7,3206.9,0.02317829]
[1768340276394,0.002,3207.7,3207.1,0.02217829]
[1768340276594,1.8753746,3207.9,3206.9,5.10735838]
[1768340276796,1.8753746,3207.9,3207.0,0.91791413]
[1768340277003,1.8753746,3207.9,3207.0,1.3419311]
[1768340277490,1.8753746,3207.9,3207.0,0.91791413]
[1768340277927,0.002,3208.0,3207.1,0.02009508]
[1768340278697,3.11920733,3208.0,3207.1,0.02009508]
[1768340279451,4.99458193,3208.0,3207.1,0.02009508]
[1768340280328,1.8773746,3208.0,3207.1,0.02009508]
[1768340280730,1.8753746,3207.9,3207.1,0.0139796]
[1768340280935,1.8753746,3207.9,3207.1,0.2579796]
[1768340281968,4.66016312,3208.3,3207.1,0.2579796]
[1768340281969,1.8753746,3209.4,3208.1,0.01202332]
[1768340282107,1.8753746,3209.2,3208.4,4.66016312]
[1768340282434,1.8753746,3209.2,3208.5,0.46601631]
[1768340282633,1.8753746,3209.2,3208.3,0.01004115]
[1768340283231,0.002,3209.3,3208.3,0.01004115]
[1768340283533,1.8773746,3209.3,3208.3,0.01004115]
[1768340283922,0.002,3209.3,3208.8,0.00808189]
[1768340284229,1.8773746,3209.3,3208.8,0.244]
[1768340284733,0.002,3209.3,3208.8,0.244]
[1768340285529,0.00200248,3208.9,3208.8,0.244]
[1768340285717,0.002,3209.3,3208.8,0.244]
[1768340285906,0.002,3209.8,3209.0,4.66016312]
[1768340286112,1.92863959,3209.8,3209.5,0.48714078]
[1768340287798,0.002,3209.8,3209.5,0.48714078]
[1768340287999,0.002,3209.8,3209.5,0.36958037]
[1768340288334,1.92863959,3209.8,3209.5,0.36958037]
[1768340288514,0.19506396,3209.8,3209.5,0.36958037]
[1768340288835,0.002,3209.8,3209.5,0.36958037]
[1768340292311,0.002,3209.8,3209.4,0.244]
[1768340294208,0.002,3209.9,3209.4,2.1177306]
[1768340295217,0.002,3209.9,3209.4,0.244]
[1768340295520,0.002,3209.9,3209.4,2.1177306]
[1768340295721,0.002,3209.9,3209.4,2.51687672]
[1768340296509,1.44358078,3210.2,3209.4,2.51687672]
[1768340297041,0.002,3209.6,3209.4,2.51687672]
[1768340297344,1.98063921,3210.1,3209.5,0.244]
[1768340297747,0.002,3209.9,3209.5,0.244]
[1768340297950,1.98263921,3209.9,3209.5,0.244]
[1768340299034,0.002,3209.9,3209.5,0.244]
[1768340299636,0.002,3210.4,3209.6,1.94934601]
[1768340300127,0.002,3210.4,3209.6,2.16868061]
[1768340300629,1.61505884,3210.6,3209.6,2.16868061]
[1768340303163,1.98063921,3210.5,3209.6,0.2193346]
[1768340304943,1.98063921,3210.5,3209.6,2.16868061]
[1768340306376,1.98063921,3210.5,3209.6,0.2193346]
[1768340306880,0.002,3211.0,3209.8,1.94934601]
[1768340307180,0.002,3211.0,3210.1,3.57651]
[1768340307181,1.98263921,3211.0,3210.1,3.57651]
[1768340307338,1.98263921,3211.0,3210.2,0.244]
[1768340307762,0.002,3211.0,3210.2,2.19334601]
[1768340308080,0.002,3211.0,3210.3,2.16868061]
[1768340308377,1.98263921,3211.2,3210.3,2.16868061]
[1768340310360,0.002,3211.5,3210.3,2.16868061]
[1768340310675,1.98263921,3211.5,3210.3,2.16868061]
[1768340310888,0.002,3211.5,3210.3,2.16868061]
[1768340311179,0.002,3211.5,3210.5,1.94934601]
[1768340311882,0.002,3211.5,3210.7,1.94934601]
[1768340312085,0.002,3211.5,3210.8,2.19334601]
[1768340312952,0.002,3211.5,3210.9,1.94934601]
[1768340313157,0.002,3211.7,3211.1,1.94934601]
[1768340313482,0.002,3211.7,3211.2,0.1949346]
[1768340313690,0.002,3211.7,3211.3,0.244]
[1768340315288,0.002,3211.7,3211.4,0.244]
[1768340317493,0.002,3211.7,3211.1,14.5]
[1768340317494,1.91140013,3211.7,3211.1,14.5]
[1768340317671,1.91140013,3211.7,3211.3,0.244]
[1768340318069,1.91140013,3211.7,3209.8,0.38780359]
[1768340318070,1.16919442,3211.0,3209.1,1.96012604]
[1768340318270,1.16919442,3210.8,3209.1,1.96012604]
[1768340318471,1.16919442,3210.6,3209.2,0.244]
[1768340319079,1.17483169,3210.4,3209.2,0.244]
[1768340319421,1.91527078,3210.3,3209.2,0.4644126]
[1768340319562,1.17483169,3210.2,3209.2,0.4644126]
[1768340319911,0.74043909,3210.3,3209.2,0.4644126]
[1768340320068,0.74043909,3210.3,3209.2,2.42453864]
[1768340321020,3.11507071,3210.2,3209.2,2.42453864]
[1768340321251,3.81212572,3210.2,3209.2,2.42453864]
[1768340322207,4.30571803,3210.9,3209.4,1.96012604]
[1768340322369,7.42010963,3210.9,3209.6,1.96012604]
[1768340322568,1.19132643,3210.8,3209.7,2.20412604]
[1768340322770,0.74201096,3210.7,3209.7,2.20412604]
[1768340323171,6.22936522,3210.6,3209.7,2.20412604]
[1768340324620,7.43141805,3210.6,3209.7,0.244]
[1768340327714,7.43141805,3210.6,3209.7,5.244]
[1768340329332,7.43141805,3210.6,3209.7,7.20412604]
[1768340330420,0.03861364,3210.5,3209.7,7.20412604]
[1768340331521,0.81378161,3210.5,3209.7,7.20412604]
[1768340332726,6.2297533,3210.4,3209.8,0.244]
[1768340333016,0.03861364,3210.3,3209.8,0.244]
[1768340333217,6.2297533,3210.4,3210.0,0.001]
[1768340333511,0.03861364,3210.3,3210.0,0.001]
[1768340333713,2.11434464,3210.3,3210.0,0.001]
[1768340334411,1.25188708,3210.2,3210.0,0.001]
[1768340334630,1.25188708,3210.0,3208.9,1.96012604]
[1768340334829,1.25188708,3210.0,3209.0,2.20412604]
[1768340336221,1.25188708,3210.0,3209.0,1.96012604]
[1768340336436,1.25188708,3210.0,3209.1,0.244]
[1768340336936,7.4919172,3209.9,3209.1,0.244]
[1768340337299,1.26576999,3209.8,3209.1,0.244]
[1768340339837,3.11555597,3209.7,3209.1,0.244]
[1768340341334,6.23111194,3209.7,3209.0,1.96012604]
[1768340341514,6.23111194,3209.7,3209.1,0.244]
[1768340341708,0.74968819,3209.6,3209.1,0.244]
[1768340342522,3.86543141,3209.6,3209.1,0.244]
[1768340343201,8.27330626,3209.6,3208.8,1.96012604]
[1768340343405,7.52361807,3209.6,3208.9,0.244]
[1768340343610,1.29213163,3209.5,3208.6,1.96012604]
[1768340343811,1.29213163,3209.5,3208.8,0.244]
[1768340344906,7.53222348,3209.4,3209.1,0.001]
[1768340345106,0.75322235,3209.3,3209.1,0.001]
[1768340345313,2.05784628,3209.3,3209.1,0.001]
[1768340347041,3.11604138,3209.2,3209.1,0.001]
[1768340348302,6.23208276,3209.2,3208.8,0.244]
[1768340349344,6.2706964,3209.2,3208.8,0.244]
[1768340350110,6.23208276,3209.2,3208.8,0.244]
[1768340351330,6.23208276,3209.2,3208.6,1.96012604]
[1768340351542,6.23208276,3209.2,3208.8,0.244]
[1768340354645,6.23208276,3209.2,3208.7,2.25720979]
[1768340354646,6.93061327,3209.2,3208.7,2.25720979]
[1768340356003,6.93061327,3209.2,3208.7,0.244]
[1768340356432,8.27761048,3209.2,3208.7,0.244]
[1768340357144,6.93061327,3209.2,3209.0,0.001]
[1768340357334,6.93061327,3209.2,3208.7,2.35515762]
[1768340358041,6.93061327,3209.2,3208.7,0.244]
[1768340358345,11.58655118,3209.2,3208.7,0.244]
[1768340359638,6.93061327,3209.2,3208.7,0.244]
[1768340360421,6.23247116,3209.0,3208.5,2.11196018]
[1768340360620,6.2710848,3209.0,3208.6,0.244]
[1768340362584,7.64237058,3209.0,3208.6,0.244]
[1768340362851,8.9802792,3209.0,3208.5,0.00080256]
[1768340364024,0.03861364,3208.9,3208.5,0.00080256]
[1768340365156,6.23285962,3208.8,3208.5,0.00080256]
[1768340365455,0.03861364,3208.7,3208.5,0.00080256]
[1768340367660,3.15514827,3208.7,3208.5,0.00080256]
[1768340369260,3.15514827,3208.7,3208.3,0.244]
[1768340370261,3.11653463,3208.7,3208.3,0.244]
[1768340371126,0.03861364,3208.6,3208.2,2.11115762]
[1768340371326,0.03861364,3208.6,3208.3,0.244]
[1768340372254,3.11653463,3208.7,3208.3,0.244]
[1768340372761,3.11653463,3208.7,3208.2,2.35515762]
[1768340372762,4.3436117,3208.7,3208.2,2.35515762]
[1768340373162,1.22707707,3208.7,3208.2,2.35515762]
[1768340373370,4.65593791,3208.8,3208.2,2.35515762]
[1768340373671,7.77237322,3208.8,3208.2,2.35515762]
[1768340374935,3.11718723,3208.9,3208.2,2.35515762]
[1768340375267,0.00080256,3208.9,3208.4,2.1236346]
[1768340379146,0.00080256,3208.9,3208.5,0.244]
[1768340379338,0.00080256,3208.9,3208.5,2.3676346]
[1768340379776,4.65593791,3208.7,3208.1,2.1236346]
[1768340379978,4.65593791,3208.4,3208.0,0.244]
[1768340380143,0.002,3208.6,3208.0,2.3676346]
[1768340392610,0.002,3208.6,3208.3,0.001]
[1768340393181,0.002,3208.6,3208.3,2.1246346]
[1768340394583,0.002,3208.6,3208.3,0.001]
[1768340394754,0.40670655,3208.6,3208.3,0.001]
[1768340395478,0.002,3208.6,3208.3,0.001]
[1768340395684,0.002,3208.6,3208.3,2.1246346]
[1768340398187,0.04061364,3208.6,3208.3,0.001]
[1768340398392,0.03861364,3208.5,3207.9,4.17232526]
[1768340398690,4.65793791,3208.6,3207.9,4.17232526]
[1768340398862,0.46579379,3208.5,3207.9,4.17232526]
[1768340399586,3.11681835,3208.4,3207.9,4.17232526]
[1768340401161,4.65593791,3208.3,3207.9,2.04869066]
[1768340401360,4.65593791,3208.0,3207.9,1e-08]
[1768340401566,7.77314489,3208.0,3207.9,1e-08]
[1768340402064,13.87463657,3208.0,3207.9,1e-08]
[1768340402265,13.87463657,3208.0,3207.0,2.1236346]
[1768340402266,1.44555377,3207.9,3207.0,2.1236346]
[1768340402478,4.65593791,3207.6,3207.0,2.1236346]
[1768340402685,0.46559379,3207.5,3207.0,2.1236346]
[1768340404000,3.58330166,3207.5,3207.0,2.1236346]
[1768340404875,6.70100953,3207.5,3206.9,0.001]
[1768340405764,6.70100953,3207.5,3206.9,2.16900763]
[1768340406095,3.58330166,3207.5,3206.9,2.16900763]
[1768340406296,1.13568523,3207.4,3206.9,2.16900763]
[1768340408096,3.11788731,3207.3,3206.9,2.16900763]
[1768340409086,4.25351823,3207.4,3206.9,2.16900763]
[1768340409881,7.37135123,3207.4,3206.9,0.001]
[1768340410212,7.7739683,3207.2,3206.9,0.001]
[1768340410394,9.12180639,3207.2,3206.9,0.001]
[1768340411307,12.23983678,3207.2,3206.9,0.001]
[1768340411687,12.23983678,3207.2,3206.6,0.001]
[1768340411688,1.45214794,3207.1,3206.6,0.001]
[1768340411888,4.65593791,3206.8,3206.6,0.001]
[1768340412298,7.77437284,3206.8,3206.6,0.001]
[1768340412498,0.77743728,3206.7,3206.3,2.16800763]
[1768340412707,1.45276585,3206.7,3206.2,0.001]
[1768340413923,3.11843493,3206.8,3206.2,0.001]
[1768340414232,6.23686986,3206.8,3206.2,2.16900763]
[1768340414431,4.6637115,3206.8,3206.2,2.16900763]
[1768340415536,4.6637115,3206.8,3206.2,0.001]
[1768340415691,0.61176986,3206.7,3206.2,0.001]
[1768340415998,4.6637115,3206.5,3206.2,0.001]
[1768340416197,6.11890145,3206.5,3205.7,2.16800763]
[1768340416417,6.23771948,3206.3,3205.7,2.16800763]
[1768340417113,3.1184707,3206.7,3205.7,2.16800763]
[1768340417316,0.245,3206.6,3205.7,2.16800763]
[1768340418018,0.89319414,3206.6,3205.7,2.16800763]
[1768340418623,4.01185032,3206.6,3205.7,2.16800763]
[1768340418998,3.76685032,3206.6,3205.7,2.16800763]
[1768340420116,6.8855065,3206.6,3205.7,2.16800763]
[1768340420318,3.76685032,3206.6,3205.7,2.16800763]
[1768340420830,6.8855065,3206.6,3205.7,2.16800763]
[1768340421496,3.76685032,3206.6,3205.7,2.16800763]
[1768340424330,0.75165316,3206.5,3205.7,2.16800763]
[1768340424499,0.71303952,3206.5,3205.7,2.16800763]
[1768340425730,3.11876247,3206.4,3205.7,2.16800763]
[1768340425931,6.23752494,3206.4,3205.7,2.16800763]
[1768340426303,3.11876247,3206.4,3205.7,2.16800763]
[1768340426497,3.11876247,3206.4,3205.6,0.001]
[1768340426498,0.73366306,3206.3,3205.6,2.13084945]
[1768340426698,0.69504942,3206.3,3205.6,2.13084945]
[1768340427935,3.83172734,3206.5,3205.6,2.13084945]
[1768340428136,3.83172734,3206.5,3206.0,2.13184945]
[1768340428304,0.001,3206.3,3206.0,2.13184945]
[1768340429133,0.001,3206.3,3206.0,0.002]
[1768340429703,1.50259369,3206.3,3206.0,0.002]
[1768340429902,4.58290682,3206.3,3206.0,0.002]
[1768340430228,0.77016807,3206.2,3206.0,0.002]
[1768340432233,0.001,3206.3,3206.0,0.002]
[1768340433424,3.11986986,3206.3,3206.0,0.002]
[1768340433630,0.001,3206.3,3206.0,0.002]
[1768340434336,0.001,3206.3,3206.0,2.13184945]
[1768340438217,0.001,3206.3,3206.0,0.002]
[1768340440608,0.001,3206.3,3206.0,2.03259448]
[1768340441821,0.001,3206.3,3206.0,0.002]
[1768340443827,0.001,3206.3,3206.0,2.03259448]
[1768340444346,0.001,3206.3,3206.0,0.002]
[1768340444711,0.001,3206.3,3206.0,2.03259448]
[1768340453453,0.002,3207.1,3206.3,2.03059448]
[1768340453750,3.1201248,3207.1,3206.3,2.03059448]
[1768340455951,0.002,3207.1,3206.3,2.03059448]
[1768340462533,0.001,3206.8,3206.3,2.03059448]
[1768340467955,0.001,3206.8,3206.3,2.27459448]
[1768340468160,0.001,3206.8,3206.5,1.9953467]
[1768340470061,0.001,3206.8,3206.5,1.9904667]
[1768340471740,0.002,3207.1,3206.7,1.9953467]
[1768340471945,0.002,3207.4,3206.7,1.9953467]
[1768340472149,3.28,3208.6,3207.4,1.9953467]
[1768340472150,7.72011233,3208.4,3207.4,1.9953467]
[1768340472461,1.48647563,3208.3,3207.4,1.9953467]
[1768340474370,3.11701265,3208.2,3207.4,1.9953467]
[1768340474554,7.72106551,3208.2,3207.4,1.9953467]
[1768340476075,1.48760001,3208.1,3207.4,1.9953467]
[1768340476844,3.11720698,3208.0,3207.4,1.9953467]
[1768340477672,3.11715004,3208.1,3207.4,1.9953467]
[1768340479358,1.48874965,3208.2,3207.4,1.9953467]
[1768340479678,2.54405904,3208.2,3207.4,1.9953467]
[1768340481076,1.05530939,3208.2,3207.4,1.9953467]
[1768340481280,6.23421962,3208.1,3207.4,1.9953467]
[1768340481878,10.89360827,3208.1,3207.4,1.9953467]
[1768340485785,0.002,3207.8,3207.4,1.9953467]
[1768340487688,0.002,3207.8,3207.2,2.18970555]
[1768340490065,0.002,3207.8,3207.0,2.43370555]
[1768340490265,3.11940133,3207.8,3207.1,2.43307611]
[1768340492788,0.002,3207.8,3207.1,2.43307611]
[1768340492994,6.15342592,3207.8,3207.0,0.244]
[1768340493192,6.15342592,3207.8,3207.0,2.18970555]
[1768340493488,6.15365671,3207.8,3207.0,2.18970555]
[1768340493670,6.19227035,3207.8,3207.0,2.18970555]
[1768340494090,6.19227035,3207.8,3206.5,2.18970555]
[1768340494091,4.65938865,3207.5,3206.5,2.18970555]
[1768340494262,4.65938865,3207.5,3206.7,2.18970555]
[1768340495081,3.11779011,3207.4,3206.7,2.18970555]
[1768340495281,7.77712971,3207.5,3206.7,2.18970555]
[1768340495995,6.23499702,3207.7,3206.7,2.18970555]
[1768340496195,6.23499702,3207.7,3206.7,2.43370555]
[1768340496396,1.26343539,3207.6,3206.7,2.43370555]
[1768340497743,3.1176929,3207.5,3206.7,2.43370555]
[1768340498472,3.1176929,3207.5,3207.3,0.001]
[1768340501701,7.77708155,3207.5,3207.3,0.001]
[1768340502072,10.89477445,3207.5,3207.3,0.001]
[1768340502272,1.21582098,3207.4,3206.9,2.07636305]
[1768340505320,4.33366168,3207.4,3206.9,2.07636305]
[1768340506220,1.21582098,3207.4,3206.9,2.07636305]
[1768340507432,4.33364189,3207.4,3206.9,2.07636305]
[1768340510530,7.4514628,3207.4,3206.9,2.07636305]
[1768340510887,7.4514628,3207.4,3207.0,0.001]
[1768340511199,1.21108515,3207.3,3207.0,0.001]